fUST/lending_fUST_20240620
["ID","MTS","AMOUNT","RATE_DAILY","PERIOD"]
[329979779,1718891441011,-4966.94297464,0.0005589,61]
[329979780,1718891441021,-500.0,0.0005589,120]
[329979781,1718891441033,-1231.35,0.0005589,120]
[329979782,1718891441043,-505.84456148,0.0005589,120]
[329979783,1718891441053,-500.0,0.0005589,120]
[329979784,1718891441062,-500.0,0.0005589,120]
[329979785,1718891441071,-500.0,0.0005589,120]
[329979786,1718891441081,-500.0,0.0005589,2]
[329979787,1718891441090,-500.0,0.0005589,120]
[329979788,1718891441099,-235.75112708,0.0005589,120]
[329979789,1718891441109,-517.50814905,0.0005589,120]
[329979790,1718891441118,-508.21464023,0.0005589,120]
[329979791,1718891441128,-500.0,0.0005589,120]
[329979792,1718891441138,-500.0,0.0005589,120]
[329979793,1718891441147,-500.0,0.0005589,120]
[329979794,1718891441156,-514.57617663,0.0005589,120]
[329979795,1718891441167,-500.0,0.0005589,120]
[329979796,1718891441176,-518.5810546,0.0005589,120]
[329979797,1718891441187,-500.0,0.0005589,120]
[329979798,1718891441196,-513.36194162,0.0005589,120]
[329979799,1718891441206,-500.0,0.0005589,120]
[329979800,1718891441218,-500.0,0.0005589,120]
[329979801,1718891441228,-250.0,0.0005589,120]
[329979802,1718891441237,-500.0,0.0005589,120]
[329979803,1718891441247,-500.0,0.0005589,120]
[329979804,1718891441256,-641.70776834,0.0005589,120]
[329979805,1718891441266,-500.0,0.0005589,2]
[329979806,1718891441277,-576.42,0.0005589,120]
[329979807,1718891441287,-500.0,0.0005589,120]
[329979808,1718891441296,-3951.79,0.0005589,120]
[329979809,1718891441305,-500.0,0.0005589,120]
[329979810,1718891441315,-795.77,0.0005589,120]
[329979811,1718891441324,-500.0,0.0005589,120]
[329979812,1718891441334,-622.34137942,0.0005589,30]
[329979813,1718891441344,-500.0,0.0005589,120]
[329979814,1718891441353,-500.0,0.0005589,120]
[329979815,1718891441363,-518.38962322,0.0005589,120]
[329979816,1718891441373,-500.0,0.0005589,120]
[329979817,1718891441383,-500.0,0.0005589,120]
[329979818,1718891441393,-500.0,0.0005589,120]
[329979819,1718891441402,-505.61067137,0.0005589,120]
[329979820,1718891441412,-500.0,0.0005589,120]
[329979821,1718891441421,-509.79962316,0.0005589,2]
[329979822,1718891441431,-827.28,0.0005589,120]
[329979823,1718891441442,-500.0,0.0005589,120]
[329979824,1718891441451,-500.0,0.0005589,120]
[329979825,1718891441461,-520.0,0.000559,35]
[329979826,1718891441470,-4894.74080425,0.00056013,120]
[329979827,1718891441480,-500.0,0.00056164,120]
[329979828,1718891441489,-3520.98694368,0.00056175,120]
[329979829,1718891441508,-1373.75386057,0.00056175,120]
[329979830,1718891441519,-7328.72348927,0.00056423,120]
[329979831,1718891441531,-5000.0,0.00056423,120]
[329979832,1718891441540,-4894.74080425,0.00056687,120]
[329979833,1718891441550,-4894.74080425,0.00056836,120]
[329979834,1718891441559,-252.0,0.000569,36]
[329979835,1718891441568,-504.0,0.000569,36]
[329979836,1718891441578,-504.0,0.000569,36]
[329979837,1718891441587,-504.0,0.000569,36]
[329979838,1718891441596,-2000.0,0.000569,36]
[329979839,1718891441606,-756.0,0.000569,36]
[329979840,1718891441615,-160.0,0.000569,54]
[329979841,1718891441625,-153.0,0.00056922,2]
[329979842,1718891441635,-153.0,0.00056923,2]
[329979843,1718891441643,-153.0,0.00056923,2]
[329979844,1718891441651,-153.0,0.00056923,2]
[329979845,1718891441661,-153.0,0.00056965,2]
[329979846,1718891441676,-153.0,0.00056965,2]
[329979847,1718891441686,-153.0,0.00056966,2]
[329979848,1718891441695,-14.26560436,0.00056966,2]
[329979892,1718891447156,-138.73439564,0.00056966,2]
[329979893,1718891447166,-153.0,0.00056966,2]
[329979894,1718891447175,-153.0,0.00056967,2]
[329979895,1718891447185,-153.0,0.00056969,2]
[329979896,1718891447195,-153.0,0.00056969,2]
[329979897,1718891447204,-153.0,0.00056969,2]
[329979898,1718891447214,-148.96820822,0.00056969,2]
[329979902,1718892427144,-166.437405,0.00021096,2]
[329979903,1718892427173,-198.3064734,0.00031041,7]
[329979904,1718892427200,-166.666667,0.00031373,2]
[329979905,1718892427228,-198.3064734,0.00032341,7]
[329979906,1718892427258,-198.3064734,0.0003256,7]
[329979907,1718892427283,-198.3064734,0.00032998,7]
[329979908,1718892427308,-182.88174178,0.00033332,7]
[329979909,1718892433104,-15.42473162,0.00033332,7]
[329979910,1718892433126,-198.3064734,0.00033337,7]
[329979911,1718892433146,-198.3064734,0.00033537,7]
[329979912,1718892433169,-198.3064734,0.00033687,7]
[329979913,1718892433188,-198.3064734,0.00033828,7]
[329979914,1718892433209,-198.3064734,0.0003385,7]
[329979915,1718892433229,-72.49992516,0.00034064,7]
[329979916,1718892435183,-178.270507,0.00034576,2]
[329979917,1718892435204,-400.0,0.00034917,2]
[329979918,1718892435226,-6615.92615228,0.00034918,2]
[329979919,1718892452159,-162.90791332,0.00031271,7]
[329979920,1718892452179,-1349.18923348,0.00034918,2]
[329979982,1718892640546,-152.15383587,0.00031402,7]
[329979984,1718892640556,-152.15383587,0.00031595,7]
[329979986,1718892640567,-152.15383587,0.00031909,7]
[329979987,1718892640577,-152.15383587,0.00031922,7]
[329979990,1718892640587,-152.15383587,0.00032832,7]
[329979993,1718892640598,-152.15383587,0.00033088,7]
[329979995,1718892640610,-154.86430547,0.00033982,7]
[329979996,1718892640620,-152.15383587,0.00034013,7]
[329979997,1718892640629,-21.50953377,0.00034683,7]
[329979998,1718892640641,-130.6443021,0.00034683,7]
[329979999,1718892640650,-153.0,0.00035473,2]
[329980000,1718892640660,-153.0,0.00035473,2]
[329980001,1718892640670,-152.15383587,0.00035529,7]
[329980002,1718892640679,-166.666667,0.00035649,2]
[329980003,1718892640688,-152.15383587,0.00035963,7]
[329980004,1718892640698,-153.0,0.00036274,2]
[329980005,1718892640707,-153.0,0.00036274,2]
[329980006,1718892640717,-153.0,0.00036278,2]
[329980007,1718892640726,-152.15383587,0.00036305,7]
[329980008,1718892640735,-152.15383587,0.00037522,7]
[329980009,1718892640745,-166.437405,0.00037652,2]
[329980010,1718892640754,-152.15383587,0.00037717,7]
[329980011,1718892640763,-152.15383587,0.00038482,7]
[329980012,1718892640772,-14586.5698331,0.00038489,2]
[329980013,1718892640781,-152.15383587,0.0003873,7]
[329980014,1718892640790,-152.15383587,0.00038907,7]
[329980015,1718892640799,-152.15383587,0.00040283,30]
[329980016,1718892640808,-152.15383587,0.00041639,30]
[329980017,1718892640817,-152.15383587,0.00041828,30]
[329980018,1718892640826,-152.15383587,0.00041876,30]
[329980019,1718892640835,-507.61935613,0.0004189,30]
[329980021,1718892640845,-152.15383587,0.00042212,30]
[329980023,1718892640854,-151.0,0.000424,26]
[329980025,1718892640866,-152.15383587,0.00043979,30]
[329980027,1718892640875,-517.0,0.00044095,30]
[329980029,1718892640885,-152.15383587,0.00045253,30]
[329980031,1718892640894,-152.15383587,0.00045325,30]
[329980033,1718892640904,-152.15383587,0.00045377,30]
[329980035,1718892640913,-593.0,0.000462,30]
[329980037,1718892640923,-152.15383587,0.00046252,30]
[329980039,1718892640932,-517.0,0.00046415,30]
[329980041,1718892640941,-152.15383587,0.00046429,30]
[329980043,1718892640951,-152.15383587,0.00046889,30]
[329980045,1718892640961,-152.15383593,0.00048511,30]
[329980047,1718892640970,-517.0,0.00048858,30]
[329980049,1718892640980,-500.0,0.00049315,120]
[329980051,1718892640989,-150.0,0.00051,85]
[329980053,1718892640998,-517.0,0.0005143,30]
[329980055,1718892641008,-8866.0,0.000517,120]
[329980057,1718892641018,-1587.91867908,0.00053937,28]
[329980059,1718892641028,-517.0,0.00054137,30]
[329980061,1718892641037,-166.437405,0.00054207,2]
[329980063,1718892641047,-234.54151633,0.00054694,2]
[329980065,1718892641057,-444.51919328,0.00054793,120]
[329980067,1718892641066,-196.36331647,0.00054793,120]
[329980069,1718892641075,-503.61509051,0.00054794,15]
[329980071,1718892641085,-500.0,0.00054794,120]
[329980073,1718892641095,-500.0,0.00054794,2]
[329980075,1718892641110,-500.0,0.00054794,120]
[329980078,1718892641119,-552.4,0.00054794,120]
[329980080,1718892641128,-500.0,0.00054794,120]
[329980082,1718892641137,-3787.13,0.00054794,120]
[329980084,1718892641148,-762.61,0.00054794,120]
[329980086,1718892641157,-500.0,0.00054794,120]
[329980088,1718892641167,-1000.0,0.00054794,120]
[329980089,1718892641176,-518.38962322,0.00054794,120]
[329980090,1718892641186,-500.0,0.00054794,120]
[329980091,1718892641196,-500.0,0.00054794,120]
[329980092,1718892641205,-5367.49,0.00054794,120]
[329980093,1718892641214,-202.4050289,0.00054794,120]
[329980094,1718892641223,-500.0,0.00054794,120]
[329980095,1718892641232,-500.0,0.00054794,120]
[329980096,1718892641241,-500.0,0.00054794,120]
[329980097,1718892641251,-3426.57,0.00054794,120]
[329980098,1718892641260,-500.0,0.00054794,120]
[329980099,1718892641268,-500.0,0.00054794,120]
[329980100,1718892641278,-500.0,0.00054794,120]
[329980101,1718892641287,-500.0,0.00054794,120]
[329980102,1718892641296,-3176.6,0.00054794,120]
[329980103,1718892641305,-557.39208294,0.00054794,120]
[329980104,1718892641315,-500.0,0.00054794,120]
[329980105,1718892641324,-500.0,0.00054794,120]
[329980106,1718892641334,-500.0,0.00054794,120]
[329980107,1718892641343,-500.0,0.00054794,120]
[329980108,1718892641352,-1302.22,0.00054794,120]
[329980109,1718892641364,-869.58,0.00054794,120]
[329980110,1718892641373,-1219.37,0.00054794,120]
[329980111,1718892641382,-500.0,0.00054794,120]
[329980112,1718892641391,-500.0,0.00054794,120]
[329980113,1718892641400,-500.0,0.00054794,120]
[329980114,1718892641410,-500.0,0.00054794,120]
[329980115,1718892641420,-500.0,0.00054794,120]
[329980116,1718892641429,-500.0,0.00054794,120]
[329980117,1718892641438,-500.0,0.00054794,120]
[329980118,1718892641448,-510.23,0.00054794,120]
[329980120,1718892641458,-500.0,0.00054794,120]
[329980121,1718892641467,-500.0,0.00054794,120]
[329980123,1718892641476,-583.43,0.00054794,2]
[329980125,1718892641485,-500.0,0.00054794,120]
[329980127,1718892641494,-500.0,0.00054794,120]
[329980128,1718892641504,-500.0,0.00054794,2]
[329980129,1718892641513,-1000.0,0.00055,120]
[329980130,1718892641523,-500.0,0.00055068,120]
[329980131,1718892641531,-507.19216329,0.00055068,2]
[329980132,1718892641540,-500.0,0.00055068,120]
[329980134,1718892641550,-552.4,0.00055068,120]
[329980136,1718892641559,-385.58661485,0.00055068,120]
[329980137,1718892641568,-3787.13,0.00055068,120]
[329980139,1718892641577,-762.61,0.00055068,120]
[329980141,1718892641587,-500.0,0.00055068,120]
[329980143,1718892641596,-824.09713797,0.00055068,120]
[329980145,1718892641605,-510.77103045,0.00055068,120]
[329980146,1718892641617,-500.0,0.00055068,120]
[329980148,1718892641626,-5367.49,0.00055068,120]
[329980150,1718892641635,-483.0485805,0.00055068,120]
[329980152,1718892641644,-500.0,0.00055068,120]
[329980154,1718892641653,-500.0,0.00055068,120]
[329980155,1718892641662,-3426.57,0.00055068,120]
[329980156,1718892641671,-500.0,0.00055068,120]
[329980157,1718892641680,-500.0,0.00055068,120]
[329980158,1718892641690,-500.0,0.00055068,120]
[329980160,1718892641699,-3176.6,0.00055068,120]
[329980161,1718892641708,-500.0,0.00055068,120]
[329980162,1718892641718,-500.0,0.00055068,120]
[329980163,1718892641727,-500.0,0.00055068,120]
[329980164,1718892641736,-500.0,0.00055068,120]
[329980165,1718892641746,-1302.22,0.00055068,120]
[329980166,1718892641756,-1219.37,0.00055068,120]
[329980167,1718892641765,-500.0,0.00055068,120]
[329980168,1718892641775,-500.0,0.00055068,120]
[329980169,1718892641784,-500.0,0.00055068,120]
[329980170,1718892641794,-500.0,0.00055068,120]
[329980171,1718892641803,-500.0,0.00055068,120]
[329980172,1718892641812,-500.0,0.00055068,120]
[329980173,1718892641822,-503.46364103,0.00055068,120]
[329980174,1718892641831,-510.23,0.00055068,120]
[329980175,1718892641841,-500.0,0.00055068,120]
[329980176,1718892641851,-500.0,0.00055068,120]
[329980177,1718892641862,-583.43,0.00055068,2]
[329980178,1718892641871,-500.0,0.00055068,120]
[329980179,1718892641880,-500.0,0.00055068,2]
[329980180,1718892641889,-501.15692702,0.00055068,120]
[329980181,1718892641898,-500.0,0.00055342,120]
[329980182,1718892641907,-500.0,0.00055342,120]
[329980183,1718892641916,-552.4,0.00055342,120]
[329980184,1718892641926,-3787.13,0.00055342,120]
[329980185,1718892641935,-762.61,0.00055342,120]
[329980186,1718892641945,-500.0,0.00055342,120]
[329980187,1718892641954,-500.0,0.00055342,120]
[329980188,1718892641963,-5367.49,0.00055342,120]
[329980189,1718892641972,-500.0,0.00055342,120]
[329980190,1718892641981,-500.0,0.00055342,120]
[329980191,1718892641991,-3426.57,0.00055342,120]
[329980192,1718892642001,-500.0,0.00055342,120]
[329980193,1718892642098,-500.0,0.00055342,120]
[329980194,1718892642112,-500.0,0.00055342,120]
[329980195,1718892642122,-3176.6,0.00055342,120]
[329980196,1718892642131,-500.0,0.00055342,120]
[329980197,1718892642141,-500.0,0.00055342,120]
[329980198,1718892642150,-500.0,0.00055342,120]
[329980199,1718892642159,-500.0,0.00055342,120]
[329980200,1718892642167,-1302.22,0.00055342,120]
[329980201,1718892642177,-1219.37,0.00055342,120]
[329980202,1718892642187,-500.0,0.00055342,120]
[329980203,1718892642198,-500.0,0.00055342,120]
[329980204,1718892642208,-500.0,0.00055342,120]
[329980205,1718892642217,-500.0,0.00055342,120]
[329980206,1718892642228,-513.62124172,0.00055342,120]
[329980207,1718892642237,-500.0,0.00055342,120]
[329980208,1718892642247,-510.23,0.00055342,120]
[329980209,1718892642256,-500.0,0.00055342,120]
[329980210,1718892642266,-500.0,0.00055342,120]
[329980211,1718892642275,-583.43,0.00055342,2]
[329980212,1718892642284,-500.0,0.00055342,120]
[329980213,1718892642294,-500.0,0.00055342,2]
[329980214,1718892642304,-500.0,0.00055616,120]
[329980215,1718892642313,-593.0882911,0.00055616,120]
[329980216,1718892642322,-552.4,0.00055616,120]
[329980217,1718892642331,-3787.13,0.00055616,120]
[329980218,1718892642340,-762.61,0.00055616,120]
[329980219,1718892642350,-500.0,0.00055616,120]
[329980220,1718892642361,-649.0902292,0.00055616,120]
[329980221,1718892642370,-5367.49,0.00055616,120]
[329980222,1718892642379,-500.0,0.00055616,120]
[329980223,1718892642388,-500.0,0.00055616,120]
[329980224,1718892642397,-3426.57,0.00055616,120]
[329980225,1718892642407,-500.0,0.00055616,120]
[329980226,1718892642416,-500.0,0.00055616,120]
[329980227,1718892642425,-521.30615473,0.00055616,120]
[329980228,1718892642435,-3176.6,0.00055616,120]
[329980229,1718892642445,-500.0,0.00055616,120]
[329980230,1718892642454,-500.0,0.00055616,120]
[329980231,1718892642464,-560.03068512,0.00055616,120]
[329980232,1718892642473,-500.0,0.00055616,120]
[329980233,1718892642482,-1302.22,0.00055616,120]
[329980234,1718892642491,-1219.37,0.00055616,120]
[329980235,1718892642500,-500.0,0.00055616,120]
[329980236,1718892642510,-500.0,0.00055616,120]
[329980237,1718892642519,-500.0,0.00055616,120]
[329980238,1718892642529,-500.0,0.00055616,120]
[329980239,1718892642538,-500.0,0.00055616,120]
[329980240,1718892642547,-510.23,0.00055616,120]
[329980241,1718892642556,-500.0,0.00055616,120]
[329980242,1718892642565,-500.0,0.00055616,120]
[329980243,1718892642575,-583.43,0.00055616,2]
[329980244,1718892642584,-500.0,0.00055616,120]
[329980245,1718892642593,-500.0,0.00055616,2]
[329980246,1718892642602,-50000.0,0.00055794,120]
[329980247,1718892642614,-4966.94297464,0.00055887,61]
[329980248,1718892642623,-510.06712707,0.00055887,120]
[329980249,1718892642633,-500.0,0.00055887,120]
[329980250,1718892642644,-500.0,0.00055887,120]
[329980251,1718892642654,-1000.0,0.00055887,120]
[329980252,1718892642663,-500.0,0.00055887,120]
[329980253,1718892642673,-500.0,0.00055887,120]
[329980254,1718892642683,-500.0,0.00055887,120]
[329980255,1718892642693,-500.0,0.00055887,120]
[329980256,1718892642702,-500.0,0.00055887,120]
[329980257,1718892642712,-500.0,0.00055887,120]
[329980258,1718892642721,-500.0,0.00055887,120]
[329980259,1718892642731,-500.0,0.00055887,120]
[329980260,1718892642740,-200.0,0.00055887,7]
[329980261,1718892642750,-716.98,0.00055887,120]
[329980262,1718892642759,-500.0,0.00055887,120]
[329980263,1718892642768,-511.31226543,0.00055887,120]
[329980264,1718892642777,-500.0,0.00055887,120]
[329980265,1718892642787,-315.81683125,0.00055887,120]
[329980266,1718892642797,-500.0,0.00055887,120]
[329980267,1718892642806,-503.06492185,0.00055887,120]
[329980268,1718892642815,-500.0,0.00055887,120]
[329980269,1718892642826,-502.7086725,0.00055887,120]
[329980270,1718892642836,-500.0,0.00055887,120]
[329980271,1718892642845,-385.76987526,0.00055887,120]
[329980272,1718892642854,-520.58013672,0.00055887,120]
[329980273,1718892642867,-500.0,0.00055887,120]
[329980274,1718892642877,-500.0,0.00055887,20]
[329980275,1718892642887,-500.0,0.00055887,120]
[329980276,1718892642896,-500.0,0.00055887,120]
[329980277,1718892642905,-500.0,0.00055887,120]
[329980278,1718892642916,-509.66985128,0.00055887,120]
[329980279,1718892642926,-500.0,0.00055887,2]
[329980280,1718892642936,-643.64834674,0.00055887,120]
[329980281,1718892642946,-507.31802247,0.00055887,120]
[329980282,1718892642955,-503.29168639,0.00055887,120]
[329980283,1718892642965,-500.0,0.00055887,120]
[329980284,1718892642974,-504.17098187,0.00055887,120]
[329980285,1718892642984,-500.0,0.00055887,120]
[329980286,1718892642993,-500.0,0.00055887,120]
[329980287,1718892643003,-500.0,0.00055887,120]
[329980288,1718892643012,-500.0,0.00055887,120]
[329980289,1718892643021,-500.0,0.00055887,120]
[329980290,1718892643031,-500.0,0.00055887,60]
[329980291,1718892643040,-500.0,0.00055887,120]
[329980292,1718892643050,-508.06926259,0.00055887,120]
[329980293,1718892643059,-505.39213043,0.00055887,120]
[329980294,1718892643067,-500.0,0.00055887,120]
[329980295,1718892643077,-500.0,0.00055887,120]
[329980296,1718892643086,-724.68,0.00055887,120]
[329980297,1718892643098,-505.82860507,0.00055887,120]
[329980298,1718892643110,-500.0,0.00055887,120]
[329980299,1718892643123,-500.0,0.00055887,120]
[329980300,1718892643132,-500.0,0.00055887,120]
[329980301,1718892643143,-500.0,0.00055887,120]
[329980302,1718892643152,-2258.25,0.00055887,120]
[329980303,1718892643162,-500.0,0.00055887,120]
[329980304,1718892643171,-361.43764026,0.00055887,120]
[329980305,1718892643180,-505.35708576,0.00055887,120]
[329980306,1718892643191,-500.0,0.00055887,120]
[329980307,1718892643202,-502.30196988,0.00055887,120]
[329980308,1718892643212,-500.0,0.00055887,120]
[329980309,1718892643223,-500.0,0.00055887,120]
[329980310,1718892643232,-500.0,0.00055887,120]
[329980311,1718892643241,-500.0,0.00055887,120]
[329980312,1718892643250,-213.62269834,0.00055887,20]
[329980313,1718892643260,-500.0,0.00055887,120]
[329980314,1718892643271,-500.0,0.00055887,120]
[329980315,1718892643280,-508.25340981,0.00055887,120]
[329980316,1718892643291,-500.0,0.00055887,120]
[329980317,1718892643300,-500.0,0.00055887,120]
[329980318,1718892643310,-430.55465769,0.00055887,120]
[329980319,1718892643319,-500.0,0.00055887,120]
[329980320,1718892643329,-500.0,0.00055887,120]
[329980321,1718892643338,-504.96158889,0.00055887,120]
[329980322,1718892643347,-500.0,0.00055887,120]
[329980323,1718892643357,-505.44161768,0.00055887,120]
[329980324,1718892643370,-500.0,0.00055887,120]
[329980325,1718892643379,-500.0,0.00055887,120]
[329980326,1718892643388,-502.07907272,0.00055887,120]
[329980327,1718892643397,-501.68618541,0.00055887,120]
[329980328,1718892643405,-500.0,0.00055887,120]
[329980329,1718892643414,-500.0,0.00055887,120]
[329980330,1718892643423,-500.0,0.00055887,120]
[329980331,1718892643432,-519.27342515,0.00055887,120]
[329980332,1718892643442,-500.0,0.00055887,120]
[329980333,1718892643451,-500.0,0.00055887,120]
[329980334,1718892643461,-179.03784148,0.00055887,120]
[329980335,1718892643470,-500.0,0.00055887,120]
[329980336,1718892643479,-399.49946303,0.00055887,120]
[329980341,1718892643489,-500.0,0.00055887,120]
[329980348,1718892643499,-500.0,0.00055887,120]
[329980353,1718892643509,-500.0,0.00055887,120]
[329980360,1718892643518,-500.0,0.00055887,120]
[329980365,1718892643528,-29722.08,0.00055887,120]
[329980369,1718892643538,-500.0,0.00055887,120]
[329980373,1718892643549,-500.0,0.00055887,120]
[329980376,1718892643558,-500.0,0.00055887,120]
[329980379,1718892643568,-1327.87,0.00055887,120]
[329980382,1718892643577,-500.0,0.00055887,120]
[329980385,1718892643588,-1679.52,0.00055887,21]
[329980387,1718892643597,-340.54528223,0.00055887,120]
[329980389,1718892643606,-699.94,0.00055887,120]
[329980392,1718892643619,-505.59710494,0.00055887,120]
[329980394,1718892643628,-500.0,0.00055887,120]
[329980397,1718892643638,-506.39325656,0.00055887,120]
[329980400,1718892643648,-3101.12,0.00055887,120]
[329980403,1718892643658,-500.0,0.00055887,120]
[329980406,1718892643667,-500.0,0.00055887,120]
[329980408,1718892643678,-500.0,0.00055887,120]
[329980410,1718892643688,-500.0,0.00055887,120]
[329980412,1718892643697,-504.86432741,0.00055887,120]
[329980414,1718892643707,-500.0,0.00055887,120]
[329980416,1718892643716,-500.0,0.00055887,7]
[329980417,1718892643726,-500.0,0.00055887,120]
[329980418,1718892643735,-533.28293563,0.00055887,120]
[329980419,1718892643744,-500.0,0.00055887,120]
[329980420,1718892643754,-500.0,0.00055887,120]
[329980421,1718892643763,-500.0,0.00055887,120]
[329980422,1718892643773,-501.55451825,0.00055887,120]
[329980423,1718892643782,-1180.05,0.00055887,120]
[329980424,1718892643792,-510.40620341,0.00055887,120]
[329980425,1718892643801,-502.7960431,0.00055887,120]
[329980426,1718892643811,-500.0,0.00055887,120]
[329980427,1718892643820,-587.38121168,0.00055887,120]
[329980428,1718892643830,-500.0,0.00055887,120]
[329980429,1718892643839,-505.84456148,0.00055887,120]
[329980430,1718892643848,-500.0,0.00055887,120]
[329980431,1718892643858,-506.94,0.00055887,120]
[329980433,1718892643871,-500.0,0.00055887,120]
[329980434,1718892643881,-501.86308992,0.00055887,120]
[329980435,1718892643890,-500.0,0.00055887,120]
[329980436,1718892643900,-500.0,0.00055887,120]
[329980437,1718892643910,-500.0,0.00055887,120]
[329980438,1718892643919,-500.0,0.00055887,120]
[329980440,1718892643928,-793.66,0.00055887,120]
[329980442,1718892643937,-541.64,0.00055887,120]
[329980444,1718892643947,-241.04405567,0.00055887,120]
[329980445,1718892643956,-500.0,0.00055887,120]
[329980447,1718892643966,-4839.61,0.00055887,120]
[329980449,1718892643975,-500.0,0.00055887,120]
[329980451,1718892643985,-500.0,0.00055887,120]
[329980453,1718892643995,-500.0,0.00055887,120]
[329980455,1718892644004,-500.0,0.00055887,30]
[329980456,1718892644013,-455.44182653,0.00055887,120]
[329980459,1718892644097,-500.0,0.00055887,120]
[329980460,1718892644107,-500.0,0.00055887,60]
[329980461,1718892644121,-500.0,0.00055887,120]
[329980462,1718892644130,-3319.66,0.00055887,120]
[329980463,1718892644139,-833.47,0.00055887,120]
[329980464,1718892644149,-500.0,0.00055887,120]
[329980465,1718892644160,-669.68,0.00055887,120]
[329980466,1718892644169,-500.0,0.00055887,120]
[329980467,1718892644179,-500.0,0.00055887,120]
[329980468,1718892644189,-500.0,0.00055887,120]
[329980469,1718892644199,-500.0,0.00055887,120]
[329980470,1718892644208,-500.0,0.00055887,120]
[329980471,1718892644218,-500.0,0.00055887,120]
[329980472,1718892644228,-500.0,0.00055887,120]
[329980473,1718892644238,-500.0,0.00055887,120]
[329980474,1718892644247,-500.0,0.00055887,2]
[329980475,1718892644257,-500.0,0.00055887,120]
[329980476,1718892644267,-516.85677151,0.00055887,120]
[329980477,1718892644276,-530.11055638,0.00055887,120]
[329980478,1718892644285,-500.0,0.00055887,120]
[329980479,1718892644295,-500.0,0.00055887,120]
[329980480,1718892644304,-289.79598171,0.00055887,120]
[329980481,1718892644313,-500.0,0.00055887,120]
[329980482,1718892644323,-2211.51,0.00055888,120]
[329980483,1718892644332,-1980.76,0.00055888,120]
[329980484,1718892644342,-432.48504585,0.00055888,120]
[329980485,1718892644351,-564.07655874,0.00055888,120]
[329980486,1718892644360,-500.0,0.00055888,120]
[329980489,1718892644372,-500.0,0.00055888,120]
[329980492,1718892644382,-500.0,0.00055888,120]
[329980495,1718892644391,-500.0,0.00055888,120]
[329980497,1718892644401,-500.0,0.00055888,120]
[329980499,1718892644411,-500.0,0.00055888,120]
[329980501,1718892644420,-500.0,0.00055888,120]
[329980502,1718892644430,-500.0,0.00055888,120]
[329980503,1718892644440,-500.0,0.00055888,120]
[329980504,1718892644450,-500.0,0.00055889,120]
[329980505,1718892644460,-173.35286256,0.0005589,61]
[329980506,1718892644470,-500.0,0.0005589,120]
[329980507,1718892644481,-552.4,0.0005589,120]
[329980508,1718892644490,-3787.13,0.0005589,120]
[329980509,1718892644500,-762.61,0.0005589,120]
[329980510,1718892644510,-500.0,0.0005589,120]
[329980511,1718892644519,-5367.49,0.0005589,120]
[329980512,1718892644530,-500.0,0.0005589,120]
[329980513,1718892644540,-500.0,0.0005589,120]
[329980514,1718892644550,-3426.57,0.0005589,120]
[329980515,1718892644559,-500.0,0.0005589,120]
[329980516,1718892644569,-500.0,0.0005589,120]
[329980517,1718892644579,-3176.6,0.0005589,120]
[329980518,1718892644589,-500.0,0.0005589,120]